bitfinex/quotes_ETHUSD_20240701
["timestamp","ask_amount","ask_price","bid_price","bid_amount"]
[1719799194560,2.84019,3520.9,3520.0,11.8284]
[1719799194870,2.84019,3520.9,3520.0,8.9875]
[1719799195076,2.84027,3520.8,3520.0,3.0]
[1719799195233,2.84052,3520.5,3519.8,4.137524]
[1719799196069,2.84027,3520.8,3519.8,4.137524]
[1719799196734,2.84044,3520.6,3519.8,4.137524]
[1719799197164,2.84054,3520.5,3519.8,4.137524]
[1719799197368,2.84054,3520.5,3519.8,1.137524]
[1719799197612,2.84018,3520.9,3520.0,5.887]
[1719799198112,2.84018,3520.9,3520.1,3.0]
[1719799198462,2.83995,3521.2,3520.3,2.84065]
[1719799198695,2.83995,3521.2,3520.4,3.0]
[1719799199110,2.011,3521.8,3520.4,3.0]
[1719799199111,2.83922,3522.1,3521.2,5.7675]
[1719799199279,2.83866,3522.8,3521.2,8.60743]
[1719799199280,2.83905,3522.3,3521.2,8.60743]
[1719799199481,2.83939,3521.9,3521.2,5.7675]
[1719799199694,2.83976,3521.5,3520.7,5.7675]
[1719799200007,0.567855,3521.9,3520.7,5.7675]
[1719799200008,2.83963,3521.6,3520.7,5.7675]
[1719799200376,2.79538,3521.6,3520.7,5.7675]
[1719799200892,0.567855,3521.9,3520.7,8.66464289]
[1719799201106,2.8394,3521.9,3520.8,2.84022]
[1719799201265,2.7394,3521.9,3520.8,2.84022]
[1719799201464,4.35049988,3524.9,3520.9,2.84016]
[1719799201699,4.35049988,3524.9,3521.0,0.75]
[1719799201700,2.83843,3523.1,3521.0,0.75]
[1719799201923,2.83938,3521.9,3521.0,3.59008]
[1719799202097,4.85015,3522.2,3520.9,0.75]
[1719799202098,2.011,3522.2,3521.4,2.83977]
[1719799202304,2.83881,3522.6,3521.5,8.63249]
[1719799202514,2.83881,3522.6,3521.6,0.75]
[1719799202709,3.607656,3522.6,3521.6,0.75]
[1719799202910,2.83889,3522.5,3521.5,6.5428]
[1719799203072,2.83906,3522.3,3521.5,6.5428]
[1719799203292,2.83906,3522.3,3521.6,0.75]
[1719799203493,2.83889,3522.5,3521.6,0.75]
[1719799203732,2.83898,3522.4,3521.6,0.75]
[1719799204421,0.5618736,3522.5,3521.6,0.75]
[1719799205345,0.5618736,3522.5,3521.6,3.5896]
[1719799205649,0.5618736,3522.5,3521.6,2.8396]
[1719799205928,4.84957,3522.9,3521.8,0.75]
[1719799206099,2.8385,3523.0,3522.2,0.75]
[1719799206303,0.28385,3522.9,3522.2,0.75]
[1719799206501,2.8384,3523.1,3522.2,4.33911]
[1719799206700,2.83824,3523.3,3522.4,0.75]
[1719799207036,2.83833,3523.2,3522.4,0.75]
[1719799207199,0.484933,3523.1,3522.4,0.75]
[1719799207393,2.83808,3523.5,3522.6,0.75]
[1719799207647,2.83801,3523.6,3522.6,0.75]
[1719799207931,2.83801,3523.6,3522.8,0.75]
[1719799208138,2.83809,3523.5,3522.8,0.75]
[1719799208506,0.03747244,3523.8,3523.1,0.75]
[1719799208906,0.03747244,3523.8,3523.3,0.75]
[1719799209108,2.83702,3524.9,3523.1,0.75]
[1719799209109,7.18979081,3527.0,3523.8,0.75]
[1719799209354,7.18979081,3527.0,3524.7,3.58705]
[1719799209355,2.0125,3526.0,3524.7,3.58705]
[1719799209641,2.0125,3526.0,3524.5,0.75]
[1719799209642,0.0015,3526.0,3524.5,0.75]
[1719799209791,0.0015,3526.0,3524.3,3.0]
[1719799209792,2.83495,3527.4,3526.2,0.39494539]
[1719799209992,0.29044154,3527.6,3526.1,0.75]
[1719799210245,2.83552,3526.7,3525.2,2.64871015]
[1719799210425,0.33014394,3526.6,3526.0,2.80202286]
[1719799210739,0.05462056,3527.1,3526.6,2.83558]
[1719799210946,0.05462056,3527.7,3526.5,2.74296567]
[1719799211231,2.83505,3527.3,3525.0,8.77476224]
[1719799211441,2.89014056,3526.7,3525.4,2.83655]
[1719799211652,0.05462056,3526.7,3525.5,2.89318118]
[1719799211950,0.46591935,3526.8,3526.0,2.83602]
[1719799212245,2.83555,3526.7,3525.5,2.83639]
[1719799212400,0.05462056,3526.6,3525.5,2.83639]
[1719799212597,0.33560899,3526.5,3525.6,2.83639]
[1719799212811,0.05462056,3526.4,3525.0,5.77476224]
[1719799213100,0.05462056,3526.4,3524.0,0.27811428]
[1719799213101,2.83623,3525.8,3524.3,4.841]
[1719799213303,0.05462056,3525.7,3524.3,2.83]
[1719799213626,2.83749,3524.3,3523.5,5.6185]
[1719799213841,0.283749,3524.3,3523.5,5.6185]
[1719799214040,2.89171056,3524.8,3523.5,5.6185]
[1719799214198,0.05462056,3524.7,3523.5,5.6185]
[1719799214515,2.8373,3524.5,3523.5,5.6185]
[1719799214719,2.89200056,3524.4,3523.5,5.6185]
[1719799214914,0.05462056,3524.4,3523.5,5.6185]
[1719799215133,2.89200056,3524.4,3523.5,5.6185]
[1719799215439,3.12665006,3524.3,3523.5,5.6185]
[1719799215612,3.12665006,3524.3,3523.2,3.35065727]
[1719799215613,2.83766,3524.1,3523.2,1.33965727]
[1719799215841,0.28920006,3524.3,3523.3,2.83822]
[1719799216057,0.28920006,3524.3,3523.4,0.05675563]
[1719799216058,0.05462056,3524.3,3523.4,0.05675563]
[1719799216370,2.89200056,3524.4,3523.4,0.05675563]
[1719799216568,0.05462056,3524.4,3523.2,1.33965727]
[1719799216722,2.83745,3524.3,3523.2,1.33965727]
[1719799216925,2.83808,3523.5,3523.2,1.33965727]
[1719799217129,0.05462056,3523.7,3523.2,1.33965727]
[1719799217436,0.05462056,3523.7,3522.7,7.0866]
[1719799217437,2.83777,3523.9,3522.7,7.0866]
[1719799217636,0.28918406,3524.4,3522.7,7.0866]
[1719799217637,2.83801,3523.6,3522.7,3.62199067]
[1719799217838,2.89278056,3523.5,3522.1,5.66918]
[1719799218077,2.83826,3523.3,3522.1,2.31454773]
[1719799218358,2.89297056,3523.2,3522.1,5.15372773]
[1719799218560,2.89304056,3523.1,3522.1,5.15372773]
[1719799218734,2.83825,3523.3,3522.2,5.83913]
[1719799219069,2.89298056,3523.2,3522.2,5.83913]
[1719799219363,0.05462056,3523.2,3522.1,2.31454773]
[1719799219534,2.8385,3523.0,3521.9,2.83937]
[1719799219734,0.05462056,3522.9,3521.8,3.0]
[1719799219955,0.05462056,3522.9,3521.8,5.83945]
[1719799220139,2.83842,3523.1,3522.0,2.83922]
[1719799220459,0.05462056,3523.0,3522.1,2.83918]
[1719799220649,0.05462056,3523.0,3522.2,0.05677623]
[1719799221053,0.05462056,3523.0,3522.3,2.83905]
[1719799221365,2.83798,3523.7,3522.4,2.89574282]
[1719799221551,0.05462056,3523.6,3522.7,2.83873]
[1719799222064,0.05462056,3523.6,3522.5,5.73450963]
[1719799222369,0.05462056,3523.6,3522.6,2.83873]
[1719799222672,0.05462056,3523.8,3522.7,0.05676688]
[1719799223528,0.05462056,3524.1,3522.9,2.83855]
[1719799223929,0.05462056,3524.1,3522.7,0.05676621]
[1719799223930,0.05462056,3524.1,3522.3,3.0]
[1719799224125,2.83834,3523.2,3521.9,2.83937]
[1719799224337,0.05462056,3523.1,3521.9,2.83937]
[1719799224564,0.05462056,3523.1,3522.0,0.05677926]
[1719799224868,0.05462056,3523.1,3521.9,2.83937]
[1719799225456,2.83859,3522.9,3521.8,3.0]
[1719799225664,0.05462056,3522.8,3521.7,3.0]
[1719799225830,2.89327056,3522.8,3521.4,2.83975]
[1719799226030,2.83882,3522.6,3521.3,3.0]
[1719799226229,0.05462056,3522.5,3521.2,2.83993]
[1719799226638,0.05462056,3522.5,3520.7,2.32]
[1719799226853,3.12838406,3522.4,3521.0,2.84007]
[1719799227067,0.05462056,3522.3,3521.1,2.84001]
[1719799227451,0.05462056,3522.3,3521.2,2.83991]
[1719799227654,0.05462056,3522.3,3520.7,4.998]
[1719799227655,0.05462056,3522.3,3521.0,2.84008]
[1719799228037,0.05462056,3522.3,3521.1,2.84]
[1719799228038,0.31829346,3522.2,3521.1,2.84]
[1719799228238,0.05462056,3522.1,3520.9,2.84015]
[1719799228529,2.89383056,3522.1,3520.7,5.16032]
[1719799228746,7.01729346,3522.2,3520.2,5.678]
[1719799228747,2.83946,3521.8,3520.4,2.84052]
[1719799228934,0.62796462,3521.7,3520.2,2.84067]
[1719799229132,0.62796462,3521.7,3520.0,8.48]
[1719799229490,0.05462056,3521.7,3520.1,0.05680492]
[1719799229981,0.05462056,3521.7,3520.4,2.84055]
[1719799230182,0.05462056,3521.7,3520.5,0.05680435]
[1719799230481,0.05462056,3521.7,3520.6,2.84037]
[1719799230647,0.34402062,3521.7,3520.6,2.84037]
[1719799231030,3.18356062,3521.7,3520.4,2.84055]
[1719799231332,3.18356062,3521.7,3520.0,8.48]
[1719799231333,0.31829346,3522.2,3520.7,3.0]
[1719799231539,0.05462056,3522.2,3521.5,2.83965]
[1719799231765,0.05462056,3522.3,3521.6,2.83961]
[1719799231998,0.05462056,3522.3,3521.5,2.83966]
[1719799232468,0.05462056,3522.3,3521.5,5.67932]
[1719799232687,0.05462056,3522.3,3521.6,2.83958]
[1719799233189,0.05462056,3522.3,3521.7,2.83952]
[1719799233400,0.05462056,3522.2,3521.5,2.83969]
[1719799233605,0.05462056,3522.2,3521.6,3.0]
[1719799233888,0.05462056,3522.2,3521.0,5.84008]
[1719799234087,0.05462056,3522.2,3521.0,2.84008]
[1719799234260,2.8393,3522.0,3520.7,2.84034]
[1719799234466,2.8393,3522.0,3520.8,3.0]
[1719799234467,0.34401262,3521.9,3520.8,3.0]
[1719799234862,0.34401262,3521.9,3520.6,3.0]
[1719799235071,6.9918,3521.8,3520.3,2.84066]
[1719799235405,0.05462056,3521.7,3520.3,2.84066]
[1719799235811,0.05462056,3521.7,3520.5,2.8405]
[1719799235955,1.01752826,3521.6,3520.6,2.84041]
[1719799236157,0.05462056,3521.5,3520.6,2.84041]
[1719799236504,0.05462056,3521.5,3520.7,5.84026]
[1719799237396,0.05462056,3521.5,3520.8,2.84023]
[1719799237767,0.05462056,3521.5,3520.7,3.0]
[1719799237963,0.05462056,3521.5,3520.2,3.05680555]
[1719799238163,0.86101544,3521.5,3520.3,0.05680444]
[1719799238481,0.05462056,3521.4,3520.9,2.84017]
[1719799238651,0.05462056,3521.4,3520.6,2.8404]
[1719799238652,0.80639488,3521.5,3521.2,2.8399]
[1719799238852,0.05462056,3521.7,3521.2,2.8399]
[1719799239681,0.05462056,3521.7,3520.3,2.84066]
[1719799239889,0.05462056,3521.7,3520.4,3.0]
[1719799240269,2.89416056,3521.7,3520.3,5.84066]
[1719799240457,2.89416056,3521.7,3520.4,3.0]
[1719799240661,1.01753526,3521.6,3520.8,2.84024]
[1719799240880,0.05462056,3521.5,3520.6,2.84036]
[1719799241081,0.05462056,3521.5,3520.7,3.0]
[1719799241284,0.05462056,3521.6,3521.2,2.83992]
[1719799241717,6.9918,3521.8,3520.6,2.84037]
[1719799241915,0.05462056,3521.7,3521.0,2.84009]
[1719799242226,0.05462056,3521.7,3520.8,2.84026]
[1719799242431,0.54558134,3521.8,3520.9,0.05680033]
[1719799242614,0.05462056,3522.3,3521.3,2.83981]
[1719799242795,0.05462056,3522.2,3521.3,2.83981]
[1719799243919,0.05462056,3522.2,3520.8,0.05679436]
[1719799243920,0.05462056,3522.2,3521.7,2.83945]
[1719799244137,0.05462056,3522.2,3521.0,2.84004]
[1719799244138,0.05462056,3522.2,3521.5,2.83969]
[1719799244277,0.05462056,3522.2,3521.2,2.83993]
[1719799244278,0.70377262,3522.2,3521.2,2.83993]
[1719799244623,0.70377262,3522.2,3521.0,2.84005]
[1719799244926,0.70377262,3522.2,3521.1,3.0]
[1719799245109,0.70377262,3522.2,3521.1,5.84]
[1719799245423,0.99796626,3522.1,3521.2,2.83994]
[1719799245622,0.05462056,3522.0,3521.3,2.83981]
[1719799245777,0.05462056,3522.0,3521.1,5.83997]
[1719799245980,0.05462056,3522.0,3521.2,3.0]
[1719799246642,0.05462056,3522.0,3520.5,2.84042]
[1719799247027,0.38918568,3521.9,3520.8,2.84026]
[1719799247217,0.05462056,3521.8,3520.9,3.0]
[1719799247520,0.05462056,3521.7,3520.9,3.0]
[1719799247729,0.05462056,3521.7,3520.6,2.84042]
[1719799248022,6.9386,3521.6,3520.6,2.84042]
[1719799248256,0.75394262,3521.5,3520.4,2.84058]
[1719799248788,0.75394262,3521.5,3520.2,2.84073]
[1719799249120,3.59364262,3521.5,3520.3,2.84064]
[1719799249319,2.83978,3521.4,3520.1,10.16079]
[1719799249483,0.05462056,3521.3,3520.2,2.84072]
[1719799249689,0.05462056,3521.2,3520.3,2.8406]
[1719799249899,5.83947,3521.8,3520.3,2.8406]
[1719799249900,8.17286626,3522.1,3520.7,3.0]
[1719799250117,8.17286626,3522.1,3521.2,2.83993]
[1719799250118,0.05462056,3522.0,3521.2,2.83993]
[1719799250809,0.05462056,3522.0,3521.3,2.83985]
[1719799251694,0.05462056,3522.0,3521.4,2.83977]
[1719799252109,0.05462056,3522.0,3521.0,2.84008]
[1719799252309,0.05462056,3522.0,3521.1,3.0]
[1719799252609,0.72295206,3521.9,3521.1,3.0]
[1719799252809,0.05462056,3521.8,3521.1,3.0]
[1719799253627,0.05462056,3521.8,3520.8,2.84025]
[1719799253783,0.05462056,3521.7,3520.8,2.84025]
[1719799254516,0.05462056,3521.7,3520.1,2.84078]
[1719799254517,2.84017,3521.0,3519.6,0.24589885]
[1719799254824,0.72295206,3521.9,3519.3,2.84146]
[1719799254825,9.92237,3520.8,3519.3,2.84146]
[1719799254995,9.92237,3520.8,3519.3,2.84139]
[1719799254996,2.89497056,3520.7,3519.3,2.84139]
[1719799255197,0.05462056,3520.7,3519.1,0.05682663]
[1719799255629,0.05462056,3520.7,3519.5,2.84125]
[1719799256028,2.84056,3520.5,3519.3,2.84146]
[1719799256326,0.34413862,3520.4,3519.3,2.84146]
[1719799257418,0.34413862,3520.4,3519.4,0.05682385]
[1719799257585,0.05462056,3520.4,3519.6,2.84116]
[1719799257785,7.0821,3520.8,3519.6,2.84116]
[1719799258026,0.05462056,3520.7,3519.7,3.0]
[1719799258285,0.05462056,3520.7,3519.7,2.84114]
[1719799258487,3.60869262,3520.7,3519.3,3.0]
[1719799258725,3.60869262,3520.7,3519.4,2.84138]
[1719799259088,0.76829262,3520.7,3519.7,2.84114]
[1719799259319,0.78503926,3520.6,3519.5,2.84123]
[1719799259627,0.05462056,3520.5,3519.5,2.84123]
[1719799259787,0.05462056,3520.5,3519.3,5.84143]
[1719799260139,0.05462056,3520.5,3519.1,2.84161]
[1719799260349,0.05462056,3520.5,3519.2,2.89833753]
[1719799260492,0.05462056,3520.5,3519.4,2.84132]
[1719799260688,0.36800598,3520.4,3519.5,2.84129]
[1719799260936,0.05462056,3520.3,3519.3,2.84146]
[1719799261097,0.05462056,3520.3,3519.5,2.84129]
[1719799261730,0.05462056,3520.3,3519.6,2.8412]
[1719799261947,0.05462056,3520.5,3519.8,2.84106]
[1719799262105,0.05462056,3520.5,3519.6,0.05682278]
[1719799262733,0.05257603,3520.5,3519.6,2.84119]
[1719799262889,0.05257603,3520.5,3519.4,2.84139]
[1719799263091,0.36780153,3520.4,3519.4,2.84139]
[1719799263359,0.0505315,3520.3,3519.4,2.84139]
[1719799263541,0.0505315,3520.2,3519.0,2.84168]
[1719799263831,0.0505315,3520.2,3519.1,2.8416]
[1719799265332,6.8307,3520.1,3519.1,2.8416]
[1719799265533,0.0505315,3520.0,3518.9,3.979483]
[1719799265831,0.0505315,3520.0,3518.7,2.84195]
[1719799265832,0.73865465,3520.0,3518.7,2.84195]
[1719799266032,3.57957465,3520.0,3518.7,2.84195]
[1719799266240,3.57957465,3520.0,3518.6,1.137825]
[1719799266421,2.84116,3519.7,3518.3,2.84225]
[1719799266591,0.73865465,3520.0,3518.3,2.84225]
[1719799266592,2.8917715,3519.6,3518.3,2.84225]
[1719799266936,2.84139,3519.4,3518.2,1.137953]
[1719799267176,1.29995765,3519.3,3518.0,2.84252]
[1719799267328,0.0505315,3519.2,3518.1,2.84244]
[1719799267728,0.0505315,3519.2,3518.2,2.84235]
[1719799269063,7.1163,3519.1,3518.1,1.137992]
[1719799269232,0.89215727,3519.0,3518.1,1.137992]
[1719799269665,0.89215727,3519.0,3518.0,2.84251]
[1719799269970,0.89215727,3519.0,3517.9,1.138049]
[1719799270130,2.8418,3518.9,3517.3,2.84307]
[1719799270331,2.84206,3518.6,3517.3,2.84307]
[1719799270525,0.0505315,3518.5,3517.3,2.84307]
[1719799270866,0.0505315,3518.5,3517.3,2.79307]
[1719799271052,7.3861,3518.3,3517.1,3.981468]
[1719799271402,0.0505315,3518.2,3517.1,3.981468]
[1719799271695,0.74366315,3518.1,3517.2,2.84317]
[1719799271967,0.0505315,3518.0,3517.2,2.84317]
[1719799272173,0.0505315,3518.0,3517.4,2.84299]
[1719799272326,0.0505315,3518.1,3517.4,2.84299]
[1719799272526,0.0505315,3518.1,3517.2,2.84317]
[1719799272783,2.8929815,3518.1,3517.0,1.138338]
[1719799273078,2.8929815,3518.1,3516.8,2.84345]
[1719799273429,2.84261,3517.9,3516.7,2.84354]
[1719799273623,2.84261,3517.9,3516.4,10.1638]
[1719799273624,0.0505315,3517.8,3516.8,2.84346]
[1719799273938,2.84236,3518.2,3516.4,7.32]
[1719799273939,0.0505315,3517.7,3516.9,2.84338]
[1719799274143,0.0505315,3517.7,3517.3,2.84307]
[1719799274324,0.05257603,3518.2,3516.9,0.05686506]
[1719799274523,0.05257603,3518.2,3517.5,2.84286]
[1719799274727,0.05257603,3518.2,3517.0,3.0]
[1719799274963,7.3861,3518.3,3518.1,2.84244]
[1719799275176,7.3861,3518.3,3517.9,2.84254]
[1719799275475,1.08502573,3518.8,3517.9,2.84254]
[1719799275636,0.05257603,3518.7,3517.4,3.0]
[1719799275841,0.05257603,3518.7,3517.8,2.84267]
[1719799276038,0.05257603,3518.7,3517.5,2.8429]
[1719799276461,0.05257603,3518.7,3517.7,2.8427]
[1719799278978,2.89458603,3518.7,3517.3,2.84308]
[1719799279176,1.2811576,3518.6,3517.3,2.84308]
[1719799279487,10.35990603,3518.5,3517.2,2.84313]
[1719799279791,7.4652,3518.0,3516.7,2.84357]
[1719799279951,0.05257603,3517.9,3516.7,2.84357]
[1719799280340,0.05257603,3517.9,3516.8,2.84348]
[1719799280565,1.0360226,3517.8,3516.8,2.84348]
[1719799280764,0.05257603,3517.7,3516.8,2.84348]
[1719799281285,0.05257603,3517.7,3516.6,2.84365]
[1719799281632,0.05257603,3517.7,3516.7,2.84355]
[1719799283277,0.05257603,3517.7,3516.5,2.84373]
[1719799283473,0.39312086,3517.6,3516.6,2.84364]
[1719799283797,0.05257603,3517.5,3516.6,2.84364]
[1719799284284,0.05257603,3517.5,3516.4,2.84376]
[1719799284906,0.05257603,3517.5,3516.2,3.982527]
[1719799285061,2.84317,3517.2,3516.0,2.84407]
[1719799285257,1.08351303,3517.1,3516.0,2.84407]
[1719799286001,7.4662,3517.0,3515.7,2.84436]
[1719799286162,0.05257603,3516.9,3515.9,2.8442]
[1719799286559,0.05257603,3516.9,3515.7,2.84436]
[1719799286759,0.05257603,3516.9,3515.8,2.84429]
[1719799287387,0.05257603,3516.9,3515.7,2.84436]
[1719799287583,0.7518776,3516.8,3516.0,2.84413]
[1719799287874,0.05257603,3516.7,3516.3,2.84384]
[1719799288077,0.7518776,3516.8,3515.8,2.90113265]
[1719799288078,0.05257603,3516.8,3515.8,2.90113265]
[1719799288299,6.8149,3517.7,3516.4,3.0]
[1719799288449,0.83766829,3517.6,3516.7,2.8435]
[1719799288645,0.83766829,3517.6,3517.0,2.84331]
[1719799288860,0.83766829,3517.6,3517.2,2.84316]
[1719799289066,0.83766829,3517.6,3517.0,2.84331]
[1719799289262,0.83766829,3517.6,3516.5,0.0568684]
[1719799289263,0.83766829,3517.6,3517.1,2.84318]
[1719799289862,0.83766829,3517.6,3517.2,2.84314]
[1719799290193,0.05257603,3517.6,3516.6,0.05686512]
[1719799290413,9.7898,3518.9,3517.0,2.84327]
[1719799290556,0.05257603,3518.8,3517.7,2.8427]
[1719799290755,0.9684166,3518.7,3517.7,2.84271]
[1719799290955,0.9684166,3518.7,3517.8,2.84262]
[1719799290956,0.05257603,3518.6,3517.8,2.84262]
[1719799291152,0.05257603,3518.6,3517.6,2.84284]
[1719799291394,0.05257603,3518.6,3517.5,2.84291]
[1719799291597,0.05257603,3518.6,3517.8,2.84266]
[1719799291899,0.83365529,3518.6,3517.3,3.0]
[1719799292104,0.05257603,3518.7,3518.5,2.84212]
[1719799292325,0.05257603,3518.8,3518.7,2.84195]
[1719799292483,6.7898,3518.9,3518.7,2.84195]
[1719799293034,6.7898,3518.9,3518.5,2.84211]
[1719799293182,0.05257603,3518.8,3518.4,2.84218]
[1719799293388,6.7898,3518.9,3518.5,2.84209]
[1719799293782,7.1059,3519.5,3518.7,2.84195]
[1719799294018,0.76316603,3519.4,3518.7,2.84188]
[1719799294331,0.76316603,3519.4,3518.9,2.84173]
[1719799295084,0.76316603,3519.4,3518.7,2.84194]
[1719799295387,0.76316603,3519.4,3518.5,2.84211]
[1719799295612,0.76316603,3519.4,3517.7,2.84271]
[1719799295613,0.7869066,3519.3,3517.7,3.0]
[1719799295820,0.05257603,3519.2,3517.9,2.84259]
[1719799296082,0.05257603,3519.2,3518.0,3.0]
[1719799296312,2.84178,3519.0,3517.7,2.84275]
[1719799296519,0.05257603,3519.2,3517.1,3.0]
[1719799296520,7.4445,3518.8,3517.1,3.0]
[1719799296684,0.80228363,3518.7,3518.0,2.84251]
[1719799296883,0.80228363,3518.7,3517.8,2.84262]
[1719799297215,0.80228363,3518.7,3517.6,10.16284]
[1719799297216,0.80228363,3518.7,3517.9,2.84257]
[1719799297528,0.80228363,3518.7,3517.6,7.32]
[1719799297529,0.80228363,3518.7,3518.0,2.84251]
[1719799297738,0.80228363,3518.7,3517.7,2.84276]
[1719799297937,1.10885836,3518.6,3517.7,2.84276]
[1719799298111,0.05257603,3518.5,3517.7,2.84276]
[1719799299401,1.16143439,3518.6,3517.8,0.05685381]
[1719799299606,0.05257603,3518.6,3518.1,2.84244]
[1719799300642,7.4445,3518.8,3518.1,2.84244]
[1719799301356,7.4445,3518.8,3518.1,2.79244]
[1719799301557,0.05257603,3518.7,3518.2,2.84234]
[1719799301769,0.05257603,3518.7,3518.3,2.84221]
[1719799301921,6.9885,3519.7,3518.5,2.84208]
[1719799302266,6.9885,3518.6,3517.6,7.32]
[1719799302458,0.05257603,3518.5,3517.5,2.84286]
[1719799302757,0.05257603,3518.5,3517.3,2.84308]
[1719799302977,0.05257603,3518.5,3517.4,2.84299]
[1719799303183,0.7041076,3518.4,3517.4,2.84299]
[1719799303323,0.05257603,3518.3,3517.4,2.84299]
[1719799304123,0.05257603,3518.3,3517.6,2.84284]
[1719799304319,6.9885,3518.6,3517.7,2.84275]
[1719799304548,0.69885,3518.5,3517.8,2.84267]
[1719799304823,0.05257603,3518.4,3517.8,2.84267]
[1719799305276,0.05257603,3518.4,3517.9,2.84259]
[1719799305768,6.9885,3519.1,3518.0,0.05685034]
[1719799306086,0.05257603,3519.0,3518.4,2.84218]
[1719799306363,0.7041076,3518.9,3518.2,2.84229]
[1719799306547,0.7041076,3518.9,3518.3,2.84225]
[1719799306754,0.7041076,3518.9,3518.0,2.84248]
[1719799306958,0.05257603,3518.8,3518.0,2.84248]
[1719799307560,0.05257603,3518.8,3517.8,2.84267]
[1719799307867,0.05257603,3518.7,3517.7,5.84272]
[1719799308034,0.05257603,3518.7,3517.0,1.138332]
[1719799308035,7.108,3518.6,3517.0,1.138332]
[1719799308226,0.05257603,3518.5,3517.0,1.138332]
[1719799308932,0.05257603,3518.5,3517.6,2.84283]
[1719799309649,0.05257603,3518.5,3517.8,2.84262]
[1719799309975,0.05257603,3518.5,3518.0,2.84246]
[1719799310188,0.05257603,3518.5,3518.2,2.84235]
[1719799310538,0.05257603,3518.5,3518.0,2.84246]
[1719799310785,0.05257603,3518.5,3517.9,2.84258]
[1719799311132,0.05257603,3518.5,3518.0,2.84251]
[1719799311475,0.84555971,3518.5,3517.8,2.84263]
[1719799311632,0.84555971,3518.5,3517.9,2.84259]
[1719799312837,0.84555971,3518.5,3518.0,2.84251]
[1719799314192,0.84555971,3518.5,3517.9,2.84258]
[1719799315193,3.68767971,3518.5,3517.3,2.84305]
[1719799315478,0.79535597,3518.4,3517.3,2.84305]
[1719799315684,0.05257603,3518.3,3517.3,2.84305]
[1719799315853,0.05257603,3518.2,3517.3,2.84305]
[1719799317499,1.15384596,3518.3,3517.3,2.84305]
[1719799319606,2.84245,3518.1,3516.9,6.981746]
[1719799319809,6.8295,3517.9,3516.9,1.138366]
[1719799319978,9.67211,3517.9,3516.7,2.8435]
[1719799320336,9.67211,3517.9,3516.6,2.84364]
[1719799320337,2.84268,3517.8,3516.6,2.84364]
[1719799320507,6.8295,3517.9,3516.7,2.84356]
[1719799320705,9.67212,3517.9,3516.7,2.84356]
[1719799320866,1.251457,3517.8,3516.7,2.84356]
[1719799321589,2.84276,3517.7,3516.3,2.84388]
[1719799321795,1.251457,3517.8,3516.6,2.84359]
[1719799322118,1.251457,3517.8,3516.9,2.8434]
[1719799322819,1.251457,3517.8,3517.1,2.84319]
[1719799323023,6.8295,3517.9,3517.2,2.8431]
[1719799323318,6.8295,3517.9,3517.3,2.79304]
[1719799323682,6.8295,3517.9,3517.4,2.84295]
[1719799323885,6.8295,3517.9,3517.5,2.84292]
[1719799324512,7.98084745,3518.4,3517.5,2.84292]
[1719799324724,1.08228875,3518.3,3517.6,2.84284]
[1719799324892,7.2275,3518.4,3517.4,2.84293]
[1719799325096,7.2275,3518.4,3517.6,2.84278]
[1719799326381,7.1632,3518.9,3517.4,2.8997974]
[1719799326595,7.1632,3518.9,3517.8,2.84266]
[1719799326802,7.87952,3518.9,3517.8,2.84266]
[1719799327033,7.87952,3518.9,3518.1,2.84242]
[1719799327582,7.87952,3518.9,3518.0,2.8425]
[1719799328551,7.87952,3518.9,3518.1,2.84244]
[1719799329923,7.87952,3518.9,3518.2,2.8423]
[1719799330309,7.87952,3518.9,3518.3,2.84227]
[1719799332067,7.87952,3518.9,3518.1,2.84244]
[1719799332422,7.87952,3518.9,3518.2,2.84236]
[1719799333969,0.787952,3518.8,3518.2,2.84236]
[1719799334830,0.787952,3518.8,3517.4,3.0]
[1719799335026,2.84202,3518.7,3517.3,2.84308]
[1719799335265,2.84202,3518.7,3517.5,2.84286]
[1719799335575,1.5648962,3518.6,3517.5,2.84286]
[1719799335728,1.5648962,3518.6,3517.6,2.84282]
[1719799336543,1.5648962,3518.6,3517.4,2.84296]
[1719799337052,4.4069362,3518.6,3517.4,2.84296]
[1719799337833,4.4069362,3518.6,3517.5,2.84292]
[1719799338034,0.51948882,3518.5,3517.5,2.84292]
[1719799339272,0.51948882,3518.5,3517.3,2.84308]
[1719799339454,2.84226,3518.4,3517.1,2.84324]
[1719799339799,7.0148,3518.5,3516.7,10.32]
[1719799339800,7.0148,3518.5,3517.0,2.84332]
[1719799339948,2.84233,3518.3,3516.7,10.32]
[1719799340142,1.269927,3518.2,3516.7,10.32]
[1719799340373,1.269927,3518.2,3517.1,2.84319]
[1719799340788,7.0148,3518.5,3517.8,2.84262]
[1719799340994,7.0148,3518.5,3517.6,2.8428]
[1719799341344,7.0148,3518.5,3517.3,2.84302]
[1719799341546,2.84236,3518.2,3517.1,2.84323]
[1719799341779,2.84228,3518.3,3517.1,2.84323]
[1719799342081,1.269927,3518.2,3517.0,2.84329]
[1719799342683,1.269927,3518.2,3517.1,2.84323]
[1719799343086,4.112287,3518.2,3516.9,2.84339]
[1719799343380,2.84245,3518.1,3517.0,2.84333]
[1719799343540,9.63129,3518.0,3516.7,9.334]
[1719799343745,6.7887,3518.0,3517.0,2.84332]
[1719799344141,6.7887,3518.0,3516.9,2.8434]
[1719799344767,6.7887,3518.0,3516.7,4.85757]
[1719799344953,2.84269,3517.8,3516.7,2.84357]
[1719799345153,0.963139,3517.7,3516.7,2.84357]
[1719799345360,0.963139,3517.7,3516.5,2.84373]
[1719799345584,0.963139,3517.7,3516.7,2.84357]
[1719799347351,0.963139,3517.7,3516.6,2.84364]
[1719799347549,6.7887,3518.0,3516.8,2.014]
[1719799347781,6.7887,3518.0,3517.4,2.843]
[1719799348294,6.7887,3518.0,3517.5,2.84292]
[1719799348481,6.7887,3518.0,3517.3,2.84303]